bitfinex/quotes_SOLUSD_20250901
["timestamp","ask_amount","ask_price","bid_price","bid_amount"]
[1756694707367,0.16099799,198.65,198.63,63.59992506]
[1756694707555,0.06,198.75,198.67,39.59559401]
[1756694707765,0.06,198.75,198.7,39.59559401]
[1756694707951,0.06,198.75,198.7,46.98838641]
[1756694708146,203.40066472,198.71,198.7,46.98838641]
[1756694708355,149.48014305,198.71,198.7,51.04686817]
[1756694708573,123.35320563,198.71,198.7,51.04686817]
[1756694708874,68.415399,198.71,198.7,51.04686817]
[1756694709074,20.51408405,198.71,198.7,56.58285206]
[1756694709249,0.06,198.75,198.71,13.59559401]
[1756694709577,0.06,198.75,198.72,58.51521082]
[1756694710077,0.06,198.75,198.73,39.59559401]
[1756694710272,0.06,198.75,198.73,45.50445455]
[1756694710573,0.06,198.75,198.73,76.50445455]
[1756694710774,0.06,198.75,198.73,91.22445455]
[1756694712087,0.06,198.75,198.73,60.22445455]
[1756694712282,0.06,198.75,198.72,5.90886054]
[1756694712486,0.06,198.75,198.73,54.29559401]
[1756694712665,0.06,198.75,198.73,13.59559401]
[1756694712860,5.96886054,198.75,198.67,36.28]
[1756694713058,0.06,198.75,198.69,5.90886054]
[1756694713287,0.06,198.75,198.68,54.29559401]
[1756694713288,5.90886054,198.73,198.7,40.7]
[1756694713458,5.90886054,198.73,198.71,40.7]
[1756694713666,5.96886054,198.74,198.71,40.7]
[1756694713861,5.96886054,198.74,198.71,46.60886054]
[1756694713862,0.06,198.74,198.71,46.60886054]
[1756694714358,0.06,198.74,198.69,5.90886054]
[1756694714767,5.96886054,198.74,198.7,40.7]
[1756694715286,10.94081344,198.73,198.68,44.59559401]
[1756694715479,0.06,198.74,198.69,46.60886054]
[1756694715795,5.09184251,198.74,198.7,5.90886054]
[1756694715983,5.09184251,198.74,198.71,5.90886054]
[1756694716183,5.09184251,198.74,198.72,40.7]
[1756694716678,0.06,198.74,198.72,40.7]
[1756694717284,0.10553388,198.73,198.72,40.7]
[1756694717490,0.10553388,198.73,198.68,44.59559401]
[1756694717673,0.10553388,198.73,198.69,46.60886054]
[1756694717876,0.10553388,198.73,198.7,5.90886054]
[1756694717877,5.13748678,198.73,198.7,5.90886054]
[1756694718103,0.10553388,198.73,198.7,5.90886054]
[1756694718266,0.10553388,198.73,198.72,5.90886054]
[1756694718584,0.10553388,198.73,198.72,40.68]
[1756694719189,0.10553388,198.73,198.7,5.90886054]
[1756694719406,0.10553388,198.73,198.72,40.68]
[1756694719596,5.13748678,198.73,198.72,40.68]
[1756694719906,11.04634732,198.73,198.69,13.59559401]
[1756694720078,5.90886054,198.71,198.7,40.68]
[1756694721108,5.64047958,198.73,198.7,40.68]
[1756694721418,5.90886054,198.72,198.7,40.68]
[1756694721614,5.03245936,198.71,198.7,40.68]
[1756694721811,0.10553388,198.73,198.7,40.68]
[1756694722175,0.10553388,198.73,198.72,5.90886054]
[1756694722380,0.10553388,198.73,198.72,46.58886054]
[1756694723310,0.10553388,198.73,198.72,91.18445455]
[1756694723614,0.10553388,198.73,198.72,85.27559401]
[1756694723980,0.10553388,198.73,198.72,71.68]
[1756694724180,5.13748678,198.73,198.72,40.68]
[1756694725013,0.10553388,198.73,198.72,40.68]
[1756694726226,0.10553388,198.73,198.72,60.18445455]
[1756694726587,0.10553388,198.73,198.72,65.21666066]
[1756694726794,0.10553388,198.73,198.72,65.71988127]
[1756694727088,0.10553388,198.73,198.72,97.62874181]
[1756694727291,0.10553388,198.73,198.72,128.1255212]
[1756694728187,0.10553388,198.73,198.72,87.4455212]
[1756694728394,0.10553388,198.73,198.72,82.03988127]
[1756694728613,0.10553388,198.73,198.72,122.19666066]
[1756694728797,0.10553388,198.73,198.72,97.1055212]
[1756694729520,0.10553388,198.73,198.72,71.1055212]
[1756694729703,0.16417609,198.74,198.73,39.59559401]
[1756694729903,0.16879194,198.76,198.75,13.59559401]
[1756694730093,0.16879194,198.76,198.75,60.6675992]
[1756694730696,0.15387456,198.77,198.75,60.6675992]
[1756694730896,0.15387456,198.77,198.76,45.50445455]
[1756694731119,0.15387456,198.77,198.76,47.51961855]
[1756694731318,0.15387456,198.77,198.76,41.61075801]
[1756694731519,0.15387456,198.77,198.76,47.51961855]
[1756694731726,0.15387456,198.77,198.76,88.17961855]
[1756694731897,0.15387456,198.77,198.76,119.17961855]
[1756694732100,0.15387456,198.77,198.76,124.21081194]
[1756694732316,0.15387456,198.77,198.76,202.91081194]
[1756694732618,0.15387456,198.77,198.76,176.91081194]
[1756694733296,0.1,198.84,198.77,13.59559401]
[1756694733502,0.1,198.84,198.78,60.64752326]
[1756694734106,0.1,198.84,198.78,25.03821045]
[1756694734310,0.1,198.84,198.78,91.17514174]
[1756694734520,0.1,198.84,198.78,39.59559401]
[1756694734711,0.1,198.84,198.78,86.14445455]
[1756694735028,0.1,198.84,198.78,91.17514174]
[1756694735230,0.1,198.84,198.78,91.67821045]
[1756694735405,0.1,198.84,198.78,91.17514174]
[1756694735606,0.1,198.84,198.78,45.50445455]
[1756694735828,0.1,198.84,198.78,86.14445455]
[1756694736029,0.1,198.84,198.78,91.17514174]
[1756694736329,0.1,198.84,198.78,122.17514174]
[1756694736532,0.1,198.84,198.78,117.14445455]
[1756694736732,0.1,198.84,198.78,76.50445455]
[1756694736912,0.06,198.79,198.78,76.50445455]
[1756694737111,0.15111656,198.79,198.78,119.15971955]
[1756694737442,0.15111656,198.79,198.78,124.19040674]
[1756694738050,68.06197725,198.79,198.45,19.76466919]
[1756694738336,46.0,198.51,198.5,52.12]
[1756694738647,46.0,198.51,198.5,0.2]
[1756694738946,20.0,198.51,198.5,0.2]
[1756694739122,20.0,198.51,198.5,1e-08]
[1756694739123,23.69504095,198.51,198.5,1e-08]
[1756694739310,26.0,198.46,198.41,25.6347842]
[1756694739510,0.5029928,198.45,198.41,25.6347842]
[1756694739940,3.63493462,198.44,198.42,52.78]
[1756694740241,5.93603871,198.43,198.4,36.26]
[1756694740431,3.62712942,198.42,198.4,36.26]
[1756694740618,3.62779652,198.41,198.4,36.26]
[1756694741015,3.62806933,198.41,198.4,36.26]
[1756694741521,5.93603871,198.42,198.4,89.18]
[1756694741725,18.63413887,198.47,198.41,52.9]
[1756694741909,26.0,198.44,198.4,36.26]
[1756694742119,26.0,198.41,198.4,36.26]
[1756694742413,26.0,198.41,198.4,89.16]
[1756694743162,26.0,198.41,198.4,36.26]
[1756694743317,26.0,198.41,198.4,89.08]
[1756694743715,26.0,198.41,198.4,36.26]
[1756694744328,26.0,198.41,198.4,89.04]
[1756694744759,26.0,198.41,198.4,36.26]
[1756694745254,26.0,198.41,198.4,89.02]
[1756694745455,26.0,198.41,198.4,36.26]
[1756694745642,26.0,198.41,198.4,88.98]
[1756694746237,5.93603871,198.46,198.4,94.91603871]
[1756694746554,26.0,198.43,198.4,94.91603871]
[1756694746737,26.0,198.43,198.41,52.68]
[1756694746945,26.0,198.42,198.4,42.19603871]
[1756694747148,26.0,198.42,198.41,52.66]
[1756694748350,26.0,198.42,198.41,52.64]
[1756694749255,26.0,198.44,198.41,52.64]
[1756694749767,31.93603871,198.44,198.41,52.64]
[1756694749945,26.0,198.42,198.41,52.64]
[1756694750871,26.0,198.41,198.33,0.2]
[1756694751048,5.93603871,198.38,198.34,26.56]
[1756694751446,5.93603871,198.38,198.35,52.58]
[1756694751648,5.93603871,198.38,198.36,52.54]
[1756694751868,5.93603871,198.38,198.37,52.54]
[1756694752747,5.0408338,198.38,198.33,0.2]
[1756694752946,5.93603871,198.34,198.33,52.74]
[1756694753183,15.158789,198.39,198.33,52.74]
[1756694753363,26.0,198.38,198.33,58.67603871]
[1756694753539,5.93603871,198.4,198.35,5.93603871]
[1756694753740,5.93603871,198.39,198.33,52.74]
[1756694753958,5.93603871,198.38,198.33,58.67603871]
[1756694754281,26.0,198.4,198.33,0.2]
[1756694754562,5.93603871,198.39,198.34,52.94]
[1756694755148,31.93603871,198.4,198.34,52.94]
[1756694755364,31.93603871,198.4,198.34,58.87603871]
[1756694755870,5.93603871,198.38,198.34,52.94]
[1756694756241,5.93603871,198.39,198.34,189.94]
[1756694757153,0.10386759,198.37,198.36,5.93603871]
[1756694759085,0.10386759,198.37,198.36,19.53163272]
[1756694759261,0.10386759,198.37,198.36,24.57297169]
[1756694759462,0.10386759,198.37,198.36,18.63693298]
[1756694759784,0.10386759,198.37,198.36,24.57297169]
[1756694760573,0.09892797,198.39,198.37,13.59559401]
[1756694760886,0.09343006,198.4,198.39,13.59559401]
[1756694761089,0.10935894,198.41,198.39,19.53163272]
[1756694761381,0.10935894,198.41,198.4,10.97636129]
[1756694762186,0.10935894,198.41,198.4,189.28]
[1756694762351,0.10935894,198.41,198.4,195.21603871]
[1756694762558,0.06,198.47,198.41,13.59559401]
[1756694762769,0.06,198.47,198.41,19.53163272]
[1756694763174,0.06,198.47,198.41,24.57170126]
[1756694764462,0.06,198.47,198.41,5.04006854]
[1756694764666,0.06,198.47,198.41,62.97610725]
[1756694764889,5.99603871,198.47,198.38,5.04083072]
[1756694765087,6.02965485,198.44,198.35,5.04159314]
[1756694765386,6.02965485,198.44,198.38,5.93603871]
[1756694765591,0.09361614,198.44,198.41,5.93603871]
[1756694767175,0.09361614,198.44,198.41,10.97610725]
[1756694767689,0.09361614,198.44,198.41,62.87610725]
[1756694768562,0.09361614,198.44,198.42,13.59559401]
[1756694768767,0.09361614,198.44,198.42,19.53163272]
[1756694768989,0.06,198.47,198.44,13.59559401]
[1756694769292,5.03524672,198.6,198.47,31.23050104]
[1756694769595,10.97128543,198.6,198.55,5.93603871]
[1756694769764,10.97128543,198.6,198.56,51.64]
[1756694769967,5.13451521,198.63,198.59,5.93603871]
[1756694770276,31.93603871,198.6,198.48,5.93603871]
[1756694770478,26.0,198.57,198.53,5.93603871]
[1756694770677,26.0,198.57,198.54,51.56]
[1756694770893,26.0,198.58,198.54,57.49603871]
[1756694771282,31.03590866,198.58,198.54,57.49603871]
[1756694771497,36.97194737,198.58,198.54,51.56]
[1756694771804,5.93603871,198.56,198.55,51.54]
[1756694772006,26.0,198.56,198.55,51.54]
[1756694772206,0.1,198.63,198.55,57.47603871]
[1756694772408,0.1,198.63,198.55,51.54]
[1756694772719,26.0,198.61,198.59,5.93603871]
[1756694772927,0.1,198.63,198.6,57.37603871]
[1756694773126,0.1,198.63,198.62,5.93603871]
[1756694773981,0.1,198.63,198.62,57.27603871]
[1756694774180,0.1,198.63,198.62,5.93603871]
[1756694774406,37.0707562,198.63,198.62,51.3]
[1756694774605,26.1,198.63,198.62,51.3]
[1756694775505,0.1,198.63,198.62,57.23603871]
[1756694775808,0.1,198.63,198.62,62.27077841]
[1756694776010,0.1,198.63,198.6,137.0]
[1756694776215,0.1,198.63,198.62,57.13603871]
[1756694776787,0.1,198.63,198.62,5.93603871]
[1756694776996,0.1,198.63,198.62,57.09603871]
[1756694777287,0.19694072,198.63,198.62,57.09603871]
[1756694777624,0.19694072,198.63,198.62,62.13077841]
[1756694778825,0.19694072,198.63,198.62,57.09603871]
[1756694779193,0.19694072,198.63,198.62,62.13077841]
[1756694780801,0.19694072,198.63,198.62,51.16]
[1756694781132,0.19694072,198.63,198.62,57.09603871]
[1756694781425,5.04033071,198.61,198.39,2.047502]
[1756694781591,5.04033071,198.43,198.4,53.86]
[1756694781795,5.04033071,198.45,198.42,5.93603871]
[1756694782013,5.04033071,198.46,198.44,5.93603871]
[1756694782195,5.04033071,198.46,198.45,54.08]
[1756694786190,5.04033071,198.46,198.45,60.01603871]
[1756694786707,5.04033071,198.46,198.45,54.08]
[1756694788817,5.04033071,198.46,198.45,194.08]
[1756694790696,5.04033071,198.46,198.45,140.0]
[1756694790897,5.04033071,198.46,198.45,193.24]
[1756694791298,5.04033071,198.46,198.45,193.18]
[1756694791743,5.04033071,198.42,198.39,0.03]
[1756694792029,50.57196343,198.4,198.39,1e-08]
[1756694792247,53.83629135,198.4,198.39,1e-08]
[1756694792538,10.97636942,198.38,198.37,1e-08]
[1756694792706,19.28152806,198.38,198.37,1e-08]
[1756694793227,32.87712207,198.38,198.37,1e-08]
[1756694793437,26.94108336,198.38,198.37,1e-08]
[1756694793635,27.83629135,198.38,198.37,1e-08]
[1756694793834,29.61279415,198.38,198.37,1e-08]
[1756694794912,23.67675544,198.38,198.37,1e-08]
[1756694795140,29.61279415,198.38,198.37,1e-08]
[1756694797035,5.04033071,198.38,198.37,1e-08]
[1756694797337,37.06981093,198.38,198.37,1e-08]
[1756694797832,31.13377222,198.38,198.37,1e-08]
[1756694798739,42.11064165,198.38,198.37,1e-08]
[1756694798914,42.11064165,198.38,198.37,52.80000001]
[1756694799109,42.11064165,198.38,198.37,1e-08]
[1756694800342,31.13377222,198.38,198.37,1e-08]
[1756694800639,36.17460294,198.38,198.37,52.58000001]
[1756694801011,36.17460294,198.38,198.37,192.58000001]
[1756694801216,36.17460294,198.38,198.37,52.58000001]
[1756694802036,36.17460294,198.38,198.37,1e-08]
[1756694802037,42.11064165,198.38,198.37,1e-08]
[1756694802230,55.70623566,198.38,198.37,1e-08]
[1756694802412,42.11064165,198.38,198.37,1e-08]
[1756694803143,36.17460294,198.38,198.37,1e-08]
[1756694803353,29.70623566,198.38,198.37,1e-08]
[1756694804211,5.13377222,198.38,198.37,1e-08]
[1756694804606,31.13377222,198.38,198.37,1e-08]
[1756694804845,10.17460294,198.38,198.37,1e-08]
[1756694805339,31.13377222,198.38,198.37,1e-08]
[1756694805524,5.13377222,198.38,198.37,1e-08]
[1756694806434,10.17460294,198.38,198.37,1e-08]
[1756694806750,5.13377222,198.38,198.37,58.01603872]
[1756694807118,5.13377222,198.38,198.37,1e-08]
[1756694807335,5.13377222,198.38,198.37,192.02000001]
[1756694808314,5.13377222,198.38,198.37,184.27270973]
[1756694808840,5.13377222,198.38,198.37,190.20874844]
[1756694809024,5.13377222,198.38,198.37,184.27270973]
[1756694809219,0.09344151,198.38,198.37,190.20874844]
[1756694809540,0.09344151,198.38,198.37,202.75712355]
[1756694812424,5.13377222,198.38,198.37,140.0]
[1756694812942,5.13377222,198.38,198.37,191.55]
[1756694813846,5.13377222,198.38,198.37,197.48603871]
[1756694814840,0.09344151,198.38,198.37,202.52712355]
[1756694815017,5.13377222,198.38,198.37,202.52712355]
[1756694816832,5.04033071,198.38,198.37,202.52712355]
[1756694817028,5.04033071,198.38,198.37,196.59108484]
[1756694817234,5.13681182,198.38,198.37,196.59108484]
[1756694818240,5.13681182,198.38,198.37,202.52712355]
[1756694818432,0.09648111,198.38,198.37,202.52712355]
[1756694818640,0.10915746,198.39,198.38,13.59559401]
[1756694818839,0.10915746,198.39,198.38,19.53163272]
[1756694819044,0.09309868,198.4,198.38,19.53163272]
[1756694819045,0.09309868,198.4,198.38,20.03571579]
[1756694819356,0.09309868,198.4,198.39,56.89603871]
[1756694819720,0.09309868,198.4,198.39,5.93603871]
[1756694819923,0.09309868,198.4,198.39,56.85603871]
[1756694820352,0.1042739,198.41,198.4,13.59559401]
[1756694820542,0.10079031,198.42,198.4,24.5719553]
[1756694820751,0.10079031,198.42,198.41,70.33163272]
[1756694822039,0.10079031,198.42,198.41,210.33163272]
[1756694822968,0.10079031,198.42,198.41,215.37170126]
[1756694823263,0.10079031,198.42,198.41,140.0]
[1756694823475,0.10079031,198.42,198.41,196.59603871]
[1756694824343,0.10079031,198.42,198.41,201.63610725]
[1756694825975,0.10079031,198.42,198.41,140.0]
[1756694826175,0.10079031,198.42,198.41,201.29610725]
[1756694826758,0.10079031,198.42,198.41,196.25603871]
[1756694827562,0.10079031,198.42,198.41,201.29610725]
[1756694828176,5.04033071,198.38,198.37,0.03]
[1756694828375,24.57196343,198.38,198.37,0.03]
[1756694828580,22.81415341,198.38,198.37,1e-08]
[1756694828783,27.85448412,198.38,198.37,1e-08]
[1756694830175,32.89531484,198.38,198.37,1e-08]
[1756694832682,26.95927613,198.38,198.37,1e-08]
[1756694832885,32.89531484,198.38,198.37,1e-08]
[1756694833284,29.61279415,198.38,198.37,1e-08]
[1756694833868,23.67675544,198.38,198.37,1e-08]
[1756694834073,32.89735946,198.38,198.37,1e-08]
[1756694835260,36.08116143,198.38,198.37,1e-08]
[1756694835466,31.04033071,198.38,198.37,1e-08]
[1756694835871,36.08116143,198.38,198.37,1e-08]
[1756694836585,5.04033071,198.38,198.37,1e-08]
[1756694837065,5.04033071,198.38,198.37,5.93603872]
[1756694837267,5.13458025,198.38,198.37,55.73603872]
[1756694837470,0.09424954,198.38,198.37,55.73603872]
[1756694838075,0.09424954,198.38,198.37,55.67603872]
[1756694838264,0.09424954,198.38,198.37,200.71712356]
[1756694838464,0.09424954,198.38,198.37,150.97712356]
[1756694838970,0.09424954,198.38,198.37,200.65712356]
[1756694839160,0.09424954,198.38,198.37,214.25271757]
[1756694839365,0.10790942,198.39,198.38,13.59559401]
[1756694839566,0.10790942,198.39,198.38,20.03571579]
[1756694839970,0.10790942,198.39,198.38,69.63571579]
[1756694840173,0.10539157,198.4,198.38,69.63571579]
[1756694840592,0.10539157,198.4,198.39,18.63617065]
[1756694841166,0.10539157,198.4,198.39,5.04057664]
[1756694841374,0.10539157,198.4,198.39,60.45661535]
[1756694842504,0.10539157,198.4,198.39,200.37661535]
[1756694843679,0.10539157,198.4,198.39,140.0]
[1756694843883,5.14572228,198.4,198.39,195.21603871]
[1756694844200,5.14572228,198.4,198.39,145.93603871]
[1756694844371,0.10539157,198.4,198.39,195.19603871]
[1756694844570,5.14572228,198.4,198.39,195.17603871]
[1756694844898,0.10539157,198.4,198.39,195.17603871]
[1756694845072,0.10539157,198.4,198.39,145.93603871]
[1756694845398,5.14572228,198.4,198.39,195.17603871]
[1756694845573,0.10539157,198.4,198.39,195.17603871]
[1756694845774,5.14572228,198.4,198.39,195.17603871]
[1756694846371,5.14572228,198.4,198.39,140.0]
[1756694846586,5.14572228,198.4,198.37,1e-08]
[1756694846587,10.08116143,198.38,198.37,1e-08]
[1756694847197,16.01720014,198.38,198.37,1e-08]
[1756694847505,42.01720014,198.38,198.37,1e-08]
[1756694848382,55.61279415,198.38,198.37,1e-08]
[1756694848585,29.61279415,198.38,198.37,1e-08]
[1756694849176,44.63592472,198.36,198.35,1e-08]
[1756694849375,50.57196343,198.36,198.35,1e-08]
[1756694850172,13.59559401,198.35,198.33,0.2]
[1756694850381,31.93603871,198.34,198.33,0.2]
[1756694850900,42.01821675,198.34,198.33,0.2]
[1756694851487,36.08217804,198.34,198.33,0.2]
[1756694852192,42.01821675,198.34,198.33,0.2]
[1756694853387,5.04033071,198.34,198.33,0.2]
[1756694854010,10.08217804,198.34,198.33,0.2]
[1756694854187,5.04033071,198.34,198.33,0.2]
[1756694854579,5.04033071,198.36,198.33,60.13814025]
[1756694854899,5.04033071,198.39,198.35,5.93603871]
[1756694855099,5.04033071,198.38,198.37,5.93603871]
[1756694855489,5.04033071,198.38,198.37,145.93603871]
[1756694857197,5.1410406,198.38,198.37,140.0]
[1756694858494,5.1410406,198.38,198.37,188.74]
[1756694859994,0.10070989,198.38,198.37,188.74]
[1756694860301,0.10070989,198.38,198.37,140.0]
[1756694860698,0.10070989,198.38,198.37,188.58]
[1756694861093,0.10070989,198.38,198.37,140.0]
[1756694861307,16.11791003,198.38,198.37,188.52]
[1756694861807,11.07707931,198.38,198.37,188.52]
[1756694862215,16.11791003,198.38,198.37,140.0]
[1756694862415,5.04033071,198.34,198.33,0.2]
[1756694862709,10.97636942,198.34,198.33,48.64]
[1756694864015,16.01821675,198.34,198.33,48.64]
[1756694864213,10.08217804,198.34,198.33,48.64]
[1756694864414,5.04033071,198.34,198.33,48.64]
[1756694864612,5.04033071,198.35,198.33,48.64]
[1756694864813,5.04033071,198.34,198.33,59.61801603]
[1756694865016,5.04033071,198.35,198.33,59.61801603]
[1756694865521,5.2010406,198.38,198.34,5.93603871]
[1756694865712,5.2010406,198.38,198.33,193.68197732]
[1756694865713,5.04033071,198.36,198.33,193.68197732]
[1756694865893,5.04033071,198.36,198.33,188.64]
[1756694866088,5.04033071,198.36,198.35,5.93603871]
[1756694868331,0.16070989,198.38,198.35,10.97750744]
[1756694868500,5.2010406,198.38,198.37,5.93603871]
[1756694869002,0.16070989,198.38,198.37,53.97603871]
[1756694870119,0.16070989,198.38,198.37,59.01712355]
[1756694871916,0.16070989,198.38,198.37,199.01712355]
[1756694873039,0.16070989,198.38,198.37,193.08108484]
[1756694873237,0.16070989,198.38,198.37,198.69712355]
[1756694873829,0.16070989,198.38,198.37,150.97712355]
[1756694874132,0.16070989,198.38,198.37,198.69712355]
[1756694874317,0.16070989,198.38,198.37,145.93603871]
[1756694874516,0.16070989,198.38,198.37,198.61712355]
[1756694875638,0.16070989,198.38,198.37,140.0]
[1756694875814,0.16070989,198.38,198.37,187.54]
[1756694876334,0.16070989,198.38,198.37,193.47603871]
[1756694876538,0.16070989,198.38,198.37,187.54]
[1756694876838,0.06,198.38,198.37,187.54]
[1756694877235,0.16285717,198.38,198.37,187.54]
[1756694877431,1e-08,198.38,198.37,72.11271756]
[1756694877639,0.16691885,198.42,198.4,39.59559401]
[1756694877835,0.15871999,198.46,198.42,13.59559401]
[1756694878025,0.15871999,198.46,198.42,66.99163272]
[1756694878227,0.15871999,198.46,198.44,39.59559401]
[1756694878439,0.15871999,198.46,198.44,92.99163272]
[1756694879016,0.15871999,198.46,198.44,98.03093931]
[1756694879525,0.15871999,198.46,198.44,84.4353453]
[1756694880215,0.15871999,198.46,198.44,98.03093931]
[1756694880423,0.15871999,198.46,198.44,238.03093931]
[1756694880933,1e-08,198.45,198.44,238.03093931]
[1756694881330,0.06,198.5,198.45,13.59559401]
[1756694881526,0.06,198.5,198.44,5.03930659]
[1756694881842,0.06,198.5,198.46,31.93603871]
[1756694882043,0.06,198.5,198.46,79.15603871]
[1756694882346,0.06,198.5,198.46,31.93603871]
[1756694882538,0.06,198.5,198.46,79.15603871]
[1756694883531,0.06,198.5,198.46,84.19483746]
[1756694884623,0.06,198.5,198.49,26.0]
[1756694885039,0.06,198.5,198.49,78.99603871]
[1756694885719,0.06,198.5,198.49,26.0]
[1756694885942,0.06,198.5,198.49,84.03407589]
[1756694886453,0.06,198.5,198.49,97.6296699]
[1756694887150,1e-08,198.5,198.49,176.3296699]
[1756694887336,1e-08,198.5,198.49,156.65803718]
[1756694887528,1e-08,198.5,198.49,109.73803718]
[1756694887731,1e-08,198.5,198.49,162.57407589]
[1756694888046,1e-08,198.5,198.49,115.67407589]
[1756694888257,1e-08,198.5,198.49,26.0]
[1756694888424,1e-08,198.5,198.49,78.83603871]
[1756694888951,1e-08,198.5,198.49,83.87407589]
[1756694889751,1e-08,198.5,198.49,5.03803718]
[1756694889927,1e-08,198.5,198.49,57.79407589]
[1756694890345,1e-08,198.5,198.49,197.79407589]
[1756694891052,10.97636943,198.5,198.49,186.74]
[1756694891237,10.97636943,198.5,198.49,46.74]
[1756694891749,16.0141528,198.5,198.49,46.74]
[1756694892126,5.04033071,198.42,198.41,36.32]
[1756694892327,5.04033071,198.42,198.41,83.02]
[1756694893336,5.04033071,198.42,198.41,46.7]
[1756694894243,5.04033071,198.42,198.41,186.7]
[1756694894640,5.04033071,198.42,198.41,140.0]
[1756694894843,5.04033071,198.42,198.41,186.62]
[1756694895248,5.04033071,198.42,198.41,191.66006854]
[1756694895459,5.04033071,198.43,198.41,197.59610725]
[1756694895657,5.04033071,198.43,198.42,5.93603871]
[1756694895958,5.04033071,198.43,198.42,10.97585324]
[1756694896962,5.04033071,198.42,198.41,140.0]
[1756694897136,10.97636942,198.42,198.41,186.42]
[1756694897957,5.04033071,198.38,198.35,5.93603871]
[1756694898266,5.04033071,198.38,198.36,46.54]
[1756694898562,5.04033071,198.36,198.33,0.2]
[1756694898764,5.04033071,198.36,198.34,46.5]
[1756694900743,5.04033071,198.36,198.35,140.0]
[1756694901159,10.97636942,198.36,198.35,140.0]
[1756694901357,10.97636942,198.36,198.35,186.34]
[1756694901553,0.10515169,198.43,198.35,186.34]
[1756694901554,5.04033071,198.37,198.35,186.34]
[1756694901854,5.04033071,198.41,198.36,5.93603871]
[1756694902071,5.93603871,198.39,198.33,0.2]
[1756694902275,5.04033071,198.34,198.33,0.2]
[1756694902452,10.97636942,198.34,198.33,0.2]
[1756694902655,10.97636942,198.34,198.33,46.7]
[1756694903071,5.04033071,198.34,198.33,46.7]
[1756694903455,10.97636942,198.34,198.33,46.7]
[1756694904265,16.01821675,198.34,198.33,0.2]
[1756694904582,36.97636942,198.34,198.33,0.2]
[1756694904883,42.01821675,198.34,198.33,186.62]
[1756694905352,10.97636942,198.34,198.33,186.62]
[1756694905554,5.04033071,198.34,198.33,186.62]
[1756694905983,10.97636942,198.34,198.33,186.62]
[1756694907756,10.97636942,198.34,198.33,46.62]
[1756694908278,5.04033071,198.34,198.33,46.62]
[1756694908985,10.97636942,198.34,198.33,46.62]
[1756694909363,5.04033071,198.34,198.33,46.62]
[1756694910785,5.04033071,198.34,198.33,186.62]
[1756694910988,5.04033071,198.36,198.33,186.62]
[1756694911278,5.04033071,198.35,198.33,191.66210154]
[1756694911482,5.04033071,198.37,198.33,191.66210154]
[1756694911784,5.04033071,198.37,198.33,197.59814025]
[1756694912290,5.04033071,198.35,198.33,191.66210154]
[1756694912494,5.04033071,198.35,198.33,186.62]
[1756694912853,5.04033071,198.35,198.33,191.66201358]
[1756694913681,5.04033071,198.37,198.33,191.66201358]
[1756694914067,5.04033071,198.35,198.33,186.62]
[1756694914385,5.04033071,198.37,198.33,191.66203759]
[1756694914697,5.04033071,198.37,198.33,197.5980763]
[1756694915199,5.04033071,198.35,198.33,191.66203759]
[1756694916084,5.04033071,198.37,198.33,191.66203759]
[1756694916400,5.04033071,198.37,198.33,195.37237557]
[1756694916789,5.04033071,198.35,198.33,195.37237557]
[1756694917180,0.09521921,198.34,198.33,195.37237557]
[1756694917895,0.09521921,198.34,198.33,140.2]
[1756694918094,0.09521921,198.34,198.33,185.9]
[1756694923599,5.13554992,198.34,198.33,185.9]
[1756694925404,0.09521921,198.34,198.33,190.94210154]
[1756694927210,0.09521921,198.34,198.33,194.65243952]
[1756694929687,0.09521921,198.34,198.33,208.24803353]
[1756694929911,0.09521921,198.34,198.33,148.95243952]
[1756694930103,0.09521921,198.34,198.33,193.97243952]
[1756694930311,0.09521921,198.34,198.33,193.99243952]
[1756694930891,0.09521921,198.34,198.33,145.24210154]
[1756694931096,0.09521921,198.34,198.33,140.2]
[1756694931305,0.09521921,198.34,198.33,185.22]
[1756694936590,0.09521921,198.34,198.33,190.26210154]
[1756694936822,0.09521921,198.34,198.33,67.56803353]
[1756694936991,5.04033071,198.38,198.34,13.59559401]
[1756694937190,5.04033071,198.38,198.37,3.71033798]